fUSD/lending_fUSD_20250417
["ID","MTS","AMOUNT","RATE_DAILY","PERIOD"]
[358226113,1744858249489,-664.24,0.00052054,120]
[358226115,1744858249499,-554.5,0.00052054,120]
[358226117,1744858249510,-500.0,0.00052054,120]
[358226119,1744858249519,-500.0,0.00052054,120]
[358226121,1744858249528,-500.0,0.00052054,120]
[358226123,1744858249538,-718.31,0.00052054,120]
[358226125,1744858249547,-662.6,0.00052054,120]
[358226127,1744858249556,-1209.72,0.00052054,120]
[358226129,1744858249565,-500.0,0.00052054,120]
[358226131,1744858249574,-500.0,0.00052054,120]
[358226133,1744858249583,-500.0,0.00052054,120]
[358226135,1744858249593,-218.469064,0.00052054,120]
[358226137,1744858249602,-500.0,0.00052054,120]
[358226139,1744858249611,-596.99,0.00052054,120]
[358226141,1744858249620,-500.0,0.00052054,120]
[358226143,1744858249629,-500.0,0.00052054,120]
[358226145,1744858249638,-500.0,0.00052054,120]
[358226147,1744858249647,-500.0,0.00052054,120]
[358226148,1744858249656,-151.0,0.00052054,120]
[358226151,1744858249666,-212.63414259,0.00052054,120]
[358226153,1744858249675,-500.0,0.00052054,120]
[358226155,1744858249685,-500.0,0.00052054,120]
[358226157,1744858249694,-175.92611804,0.00052054,120]
[358226159,1744858249703,-850.28,0.00052054,120]
[358226161,1744858249712,-593.96,0.00052054,120]
[358226162,1744858249721,-1030.4,0.00052054,120]
[358226164,1744858249731,-733.0,0.00052054,120]
[358226166,1744858249740,-500.0,0.00052054,120]
[358226168,1744858249749,-500.0,0.00052054,120]
[358226170,1744858249760,-503.26014306,0.00052054,120]
[358226172,1744858249770,-500.0,0.00052054,120]
[358226174,1744858249779,-500.0,0.00052054,120]
[358226176,1744858249789,-500.0,0.00052054,120]
[358226178,1744858249798,-500.0,0.00052054,120]
[358226180,1744858249808,-500.0,0.00052054,120]
[358226182,1744858249817,-552.37,0.00052054,120]
[358226184,1744858249827,-500.0,0.00052054,120]
[358226186,1744858249839,-500.0,0.00052054,120]
[358226188,1744858249848,-200.0,0.00052054,120]
[358226190,1744858249858,-207.4,0.00052054,120]
[358226192,1744858249868,-500.0,0.00052054,120]
[358226195,1744858249877,-215.0738,0.00052054,120]
[358226196,1744858249887,-648.39493233,0.00052054,120]
[358226199,1744858249897,-223.0315306,0.00052054,120]
[358226200,1744858249907,-607.8,0.00052054,120]
[358226202,1744858249916,-231.28369723,0.00052054,120]
[358226204,1744858249926,-239.84119403,0.00052054,120]
[358226206,1744858249935,-661.76,0.00052054,120]
[358226208,1744858249944,-500.0,0.00052054,120]
[358226210,1744858249953,-248.71531821,0.00052054,120]
[358226212,1744858249963,-257.91778498,0.00052054,120]
[358226214,1744858249972,-3208.4,0.00052054,120]
[358226216,1744858249982,-151.0,0.00052054,120]
[358226219,1744858249991,-267.46074303,0.00052054,120]
[358226221,1744858250001,-500.0,0.00052054,120]
[358226223,1744858250011,-1305.53,0.00052054,120]
[358226225,1744858250020,-277.35679052,0.00052054,120]
[358226226,1744858250029,-287.61899177,0.00052054,120]
[358226228,1744858250038,-500.0,0.00052054,120]
[358226230,1744858250047,-500.0,0.00052054,120]
[358226232,1744858250057,-298.26089446,0.00052054,120]
[358226234,1744858250066,-500.0,0.00052054,120]
[358226236,1744858250076,-151.0,0.00052054,120]
[358226238,1744858250086,-500.0,0.00052054,120]
[358226240,1744858250095,-309.29654756,0.00052054,120]
[358226242,1744858250105,-561.3939832,0.00052054,120]
[358226244,1744858250114,-500.0,0.00052054,120]
[358226246,1744858250123,-320.74051982,0.00052054,120]
[358226248,1744858250132,-500.0,0.00052054,120]
[358226250,1744858250141,-500.0,0.00052054,120]
[358226252,1744858250150,-500.0,0.00052054,120]
[358226254,1744858250159,-556.46,0.00052054,120]
[358226256,1744858250168,-332.60791905,0.00052054,120]
[358226258,1744858250178,-500.0,0.00052054,120]
[358226260,1744858250187,-344.91441206,0.00052054,120]
[358226262,1744858250196,-500.0,0.00052054,120]
[358226264,1744858250207,-500.0,0.00052054,120]
[358226266,1744858250216,-357.6762453,0.00052054,120]
[358226268,1744858250225,-151.0,0.00052054,120]
[358226270,1744858250234,-500.0,0.00052054,120]
[358226272,1744858250243,-641.55,0.00052054,120]
[358226274,1744858250252,-661.52,0.00052054,120]
[358226276,1744858250262,-370.91026638,0.00052054,120]
[358226278,1744858250271,-159.203492,0.00052054,120]
[358226280,1744858250280,-1210.11,0.00052054,120]
[358226282,1744858250290,-384.63394623,0.00052054,120]
[358226284,1744858250299,-600.0,0.00052054,120]
[358226286,1744858250308,-500.0,0.00052054,120]
[358226288,1744858250317,-500.0,0.00052054,120]
[358226290,1744858250327,-500.0,0.00052054,120]
[358226292,1744858250336,-151.0,0.00052054,120]
[358226294,1744858250346,-151.0,0.00052054,120]
[358226296,1744858250355,-500.0,0.00052054,120]
[358226298,1744858250364,-515.00118373,0.00052054,120]
[358226300,1744858250373,-1128.34208045,0.00052054,72]
[358226302,1744858250383,-151.0,0.00052054,120]
[358226304,1744858250393,-156.587,0.00052054,120]
[358226306,1744858250402,-500.0,0.00052054,120]
[358226308,1744858250411,-162.380719,0.00052054,120]
[358226310,1744858250421,-533.22,0.00052054,120]
[358226312,1744858250431,-168.3888056,0.00052054,120]
[358226314,1744858250440,-308.0080866,0.00052054,120]
[358226316,1744858250450,-155.759601,0.00052054,120]
[358226318,1744858250459,-567.71,0.00052054,120]
[358226320,1744858250469,-1681.4,0.00052054,120]
[358226322,1744858250478,-500.0,0.00052054,120]
[358226324,1744858250487,-500.0,0.00052054,120]
[358226326,1744858250497,-151.0,0.00052054,120]
[358226328,1744858250507,-500.0,0.00052054,120]
[358226330,1744858250517,-500.0,0.00052054,120]
[358226332,1744858250526,-580.76,0.00052054,120]
[358226334,1744858250536,-2231.33,0.00052054,120]
[358226336,1744858250545,-500.0,0.00052054,120]
[358226338,1744858250554,-153.523762,0.00052054,120]
[358226340,1744858250563,-200.0,0.00052054,120]
[358226342,1744858250572,-500.0,0.00052054,120]
[358226344,1744858250581,-500.0,0.00052054,120]
[358226346,1744858250590,-401.63602702,0.00052054,120]
[358226347,1744858250600,-151.0,0.00052054,120]
[358226349,1744858250610,-151.0,0.00052054,120]
[358226351,1744858250619,-500.0,0.00052054,120]
[358226353,1744858250628,-500.0,0.00052054,120]
[358226355,1744858250636,-885.45,0.00052054,120]
[358226357,1744858250645,-1782.49,0.00052054,120]
[358226359,1744858250654,-500.0,0.00052054,120]
[358226361,1744858250663,-500.0,0.00052054,120]
[358226363,1744858250671,-712.83,0.00052054,120]
[358226365,1744858250680,-500.0,0.00052054,120]
[358226367,1744858250689,-159.548118,0.00052054,120]
[358226369,1744858250699,-500.0,0.00052054,120]
[358226371,1744858250709,-546.52,0.00052054,120]
[358226373,1744858250719,-340.21140189,0.00052054,120]
[358226375,1744858250728,-655.93,0.00052054,120]
[358226377,1744858250737,-513.17695566,0.00052054,120]
[358226379,1744858250746,-500.0,0.00052054,120]
[358226381,1744858250759,-500.0,0.00052054,120]
[358226383,1744858250769,-500.0,0.00052054,120]
[358226385,1744858250778,-500.0,0.00052054,120]
[358226387,1744858250787,-789.88,0.00052054,120]
[358226389,1744858250796,-500.0,0.00052054,120]
[358226391,1744858250806,-500.0,0.00052054,120]
[358226393,1744858250815,-151.0,0.00052054,120]
[358226395,1744858250824,-500.0,0.00052054,120]
[358226397,1744858250833,-704.7,0.00052054,120]
[358226399,1744858250842,-500.0,0.00052054,120]
[358226401,1744858250852,-500.0,0.00052054,120]
[358226403,1744858250861,-500.0,0.00052054,120]
[358226405,1744858250870,-500.0,0.00052054,120]
[358226407,1744858250880,-500.0,0.00052054,120]
[358226409,1744858250889,-500.0,0.00052054,120]
[358226411,1744858250898,-500.0,0.00052054,120]
[358226413,1744858250907,-500.0,0.00052054,120]
[358226415,1744858250917,-500.0,0.00052054,120]
[358226417,1744858250926,-866.19,0.00052054,120]
[358226419,1744858250935,-589.7365248,0.00052054,120]
[358226421,1744858250944,-198.34701967,0.00052054,120]
[358226423,1744858250954,-500.0,0.00052054,120]
[358226425,1744858250963,-500.0,0.00052054,120]
[358226427,1744858250973,-683.62,0.00052054,14]
[358226429,1744858250982,-500.0,0.00052054,120]
[358226431,1744858250991,-590.35,0.00052054,120]
[358226433,1744858251000,-500.0,0.00052054,120]
[358226435,1744858251010,-500.0,0.00052054,120]
[358226437,1744858251019,-863.64,0.00052054,120]
[358226439,1744858251028,-665.74,0.00052054,120]
[358226441,1744858251038,-500.0,0.00052054,120]
[358226443,1744858251047,-525.02504221,0.00052054,120]
[358226445,1744858251058,-500.0,0.00052054,120]
[358226447,1744858251067,-723.71,0.00052054,120]
[358226449,1744858251077,-500.0,0.00052054,120]
[358226451,1744858251087,-500.0,0.00052054,120]
[358226453,1744858251095,-897.5,0.00052054,120]
[358226455,1744858251105,-500.0,0.00052054,120]
[358226457,1744858251114,-500.0,0.00052054,120]
[358226459,1744858251123,-515.55861295,0.00052054,120]
[358226461,1744858251133,-500.0,0.00052054,120]
[358226463,1744858251142,-500.0,0.00052054,120]
[358226465,1744858251151,-500.0,0.00052054,120]
[358226467,1744858251161,-1160.66,0.00052054,120]
[358226469,1744858251170,-500.0,0.00052054,120]
[358226471,1744858251179,-500.0,0.00052054,120]
[358226473,1744858251188,-500.0,0.00052054,120]
[358226475,1744858251197,-500.0,0.00052054,120]
[358226477,1744858251207,-500.0,0.00052054,120]
[358226479,1744858251217,-500.0,0.00052054,120]
[358226481,1744858251227,-1171.05,0.00052054,120]
[358226483,1744858251236,-500.0,0.00052054,120]
[358226485,1744858251246,-151.0,0.00052054,120]
[358226487,1744858251255,-500.0,0.00052054,120]
[358226489,1744858251266,-744.26,0.00052054,120]
[358226492,1744858251276,-500.0,0.00052054,120]
[358226494,1744858251285,-500.0,0.00052054,120]
[358226495,1744858251295,-500.0,0.00052054,120]
[358226497,1744858251305,-500.0,0.00052054,120]
[358226499,1744858251314,-500.0,0.00052054,120]
[358226501,1744858251323,-151.0,0.00052054,120]
[358226503,1744858251332,-500.0,0.00052054,120]
[358226505,1744858251342,-1563.69,0.00052054,120]
[358226507,1744858251351,-1205.23,0.00052054,120]
[358226509,1744858251360,-500.0,0.00052054,120]
[358226511,1744858251369,-500.0,0.00052054,120]
[358226513,1744858251378,-500.32,0.00052054,120]
[358226515,1744858251387,-1086.92,0.00052054,120]
[358226517,1744858251397,-500.0,0.00052054,120]
[358226519,1744858251406,-500.0,0.00052054,120]
[358226521,1744858251416,-500.0,0.00052054,120]
[358226523,1744858251427,-500.0,0.00052054,120]
[358226525,1744858251436,-1810.597504,0.00052054,120]
[358226527,1744858251446,-500.0,0.00052054,120]
[358226529,1744858251455,-526.13363805,0.00052054,120]
[358226531,1744858251465,-500.0,0.00052054,120]
[358226534,1744858251475,-607.4096154,0.00052054,120]
[358226535,1744858251485,-1810.597504,0.00052054,120]
[358226537,1744858251494,-500.0,0.00052054,120]
[358226539,1744858251505,-500.0,0.00052054,120]
[358226541,1744858251515,-500.0,0.00052054,120]
[358226543,1744858251523,-649.32,0.00052054,120]
[358226545,1744858251532,-500.0,0.00052054,120]
[358226547,1744858251542,-500.0,0.00052054,120]
[358226549,1744858251552,-550.3,0.00052054,120]
[358226551,1744858251561,-183.668339,0.00052054,120]
[358226553,1744858251570,-500.0,0.00052054,120]
[358226555,1744858251579,-500.0,0.00052054,120]
[358226557,1744858251588,-500.0,0.00052054,120]
[358226559,1744858251597,-500.0,0.00052054,120]
[358226561,1744858251607,-500.0,0.00052054,120]
[358226563,1744858251616,-500.0,0.00052054,120]
[358226565,1744858251626,-500.0,0.00052054,120]
[358226567,1744858251635,-151.0,0.00052054,120]
[358226569,1744858251644,-500.0,0.00052054,120]
[358226571,1744858251654,-500.0,0.00052054,120]
[358226573,1744858251664,-500.0,0.00052054,120]
[358226575,1744858251673,-500.0,0.00052054,120]
[358226577,1744858251682,-1003.8,0.00052054,120]
[358226579,1744858251692,-500.0,0.00052054,120]
[358226581,1744858251701,-500.0,0.00052054,120]
[358226583,1744858251710,-511.19,0.00052054,120]
[358226585,1744858251719,-500.0,0.00052054,120]
[358226587,1744858251728,-500.0,0.00052054,120]
[358226589,1744858251737,-500.0,0.00052054,120]
[358226591,1744858251746,-151.0,0.00052054,120]
[358226593,1744858251755,-1086.98,0.00052054,120]
[358226595,1744858251765,-500.0,0.00052054,120]
[358226597,1744858251774,-500.0,0.00052054,120]
[358226599,1744858251783,-500.0,0.00052054,14]
[358226601,1744858251792,-1473.01,0.00052054,120]
[358226603,1744858251801,-500.0,0.00052054,120]
[358226605,1744858251810,-500.0,0.00052054,120]
[358226607,1744858251819,-523.56119344,0.00052054,120]
[358226609,1744858251828,-500.0,0.00052054,120]
[358226611,1744858251837,-500.0,0.00052054,120]
[358226613,1744858251847,-500.0,0.00052054,120]
[358226615,1744858251856,-668.38,0.00052054,120]
[358226617,1744858251864,-500.0,0.00052054,120]
[358226634,1744858252012,-500.0,0.00052054,120]
[358226636,1744858252022,-500.0,0.00052054,120]
[358226638,1744858252031,-500.0,0.00052054,120]
[358226640,1744858252040,-151.0,0.00052054,120]
[358226642,1744858252050,-500.0,0.00052054,120]
[358226644,1744858252060,-193.07907457,0.00052054,120]
[358226646,1744858252069,-543.27066446,0.00052054,120]
[358226648,1744858252079,-151.0,0.00052054,120]
[358226650,1744858252088,-500.0,0.00052054,120]
[358226652,1744858252098,-500.0,0.00052054,120]
[358226654,1744858252107,-500.0,0.00052054,120]
[358226656,1744858252117,-500.0,0.00052054,120]
[358226658,1744858252126,-1006.93,0.00052054,120]
[358226660,1744858252135,-500.0,0.00052054,120]
[358226662,1744858252145,-500.0,0.00052054,120]
[358226664,1744858252153,-500.0,0.00052054,120]
[358226666,1744858252163,-500.0,0.00052054,120]
[358226668,1744858252172,-500.0,0.00052054,120]
[358226670,1744858252182,-500.0,0.00052054,120]
[358226672,1744858252191,-500.0,0.00052054,120]
[358226674,1744858252201,-500.0,0.00052054,120]
[358226676,1744858252210,-500.0,0.00052054,120]
[358226678,1744858252218,-500.0,0.00052054,120]
[358226680,1744858252227,-500.0,0.00052054,120]
[358226681,1744858252237,-500.0,0.00052054,120]
[358226683,1744858252246,-2928.53,0.00052054,120]
[358226685,1744858252255,-510.89,0.00052054,120]
[358226687,1744858252265,-534.2405525,0.00052054,120]
[358226689,1744858252273,-500.0,0.00052054,120]
[358226691,1744858252282,-500.0,0.00052054,120]
[358226693,1744858252292,-500.0,0.00052054,120]
[358226695,1744858252301,-2162.74,0.00052054,120]
[358226697,1744858252310,-1005.07,0.00052054,120]
[358226699,1744858252319,-575.0,0.00052054,120]
[358226701,1744858252327,-500.0,0.00052054,120]
[358226703,1744858252335,-500.0,0.00052054,120]
[358226705,1744858252344,-500.0,0.00052054,120]
[358226707,1744858252353,-500.0,0.00052054,120]
[358226709,1744858252362,-521.33,0.00052054,120]
[358226711,1744858252371,-1721.06,0.00052054,120]
[358226713,1744858252381,-500.0,0.00052054,120]
[358226715,1744858252390,-1964.51,0.00052054,120]
[358226717,1744858252399,-500.0,0.00052054,120]
[358226719,1744858252408,-500.0,0.00052054,120]
[358226721,1744858252417,-500.0,0.00052054,120]
[358226723,1744858252430,-731.66,0.00052054,120]
[358226725,1744858252439,-500.0,0.00052054,120]
[358226727,1744858252448,-1698.37,0.00052054,120]
[358226729,1744858252457,-500.0,0.00052054,120]
[358226731,1744858252467,-1000.0,0.00052054,120]
[358226733,1744858252477,-500.0,0.00052054,120]
[358226735,1744858252487,-500.0,0.00052054,120]
[358226737,1744858252498,-933.1,0.00052054,118]
[358226739,1744858252507,-1973.91,0.00052054,120]
[358226741,1744858252517,-571.54,0.00052054,120]
[358226743,1744858252527,-151.0,0.00052054,120]
[358226745,1744858252537,-1524.84,0.00052054,120]
[358226747,1744858252546,-500.0,0.00052054,120]
[358226749,1744858252555,-500.0,0.00052054,120]
[358226750,1744858252564,-500.0,0.00052054,120]
[358226752,1744858252573,-500.0,0.00052054,120]
[358226754,1744858252583,-500.0,0.00052054,120]
[358226756,1744858252592,-500.0,0.00052054,120]
[358226758,1744858252602,-841.2,0.00052054,120]
[358226760,1744858252611,-2172.87,0.00052054,120]
[358226762,1744858252620,-1000.0,0.00052054,120]
[358226764,1744858252630,-500.0,0.00052054,120]
[358226766,1744858252640,-500.0,0.00052054,120]
[358226768,1744858252650,-2000.0,0.00052054,2]
[358226770,1744858252659,-500.0,0.00052054,120]
[358226772,1744858252668,-500.0,0.00052054,120]
[358226774,1744858252678,-500.0,0.00052054,120]
[358226776,1744858252687,-500.0,0.00052054,120]
[358226778,1744858252696,-500.0,0.00052054,120]
[358226780,1744858252706,-777.54,0.00052054,120]
[358226781,1744858252715,-500.0,0.00052054,120]
[358226782,1744858252724,-875.1,0.00052054,120]
[358226783,1744858252734,-500.0,0.00052054,120]
[358226784,1744858252743,-500.0,0.00052054,120]
[358226785,1744858252752,-500.0,0.00052054,120]
[358226786,1744858252762,-1921.13,0.00052054,120]
[358226787,1744858252772,-500.0,0.00052054,120]
[358226788,1744858252781,-500.0,0.00052054,120]
[358226789,1744858252791,-549.62,0.00052054,120]
[358226790,1744858252800,-500.0,0.00052054,120]
[358226791,1744858252811,-500.0,0.00052054,120]
[358226792,1744858252820,-1092.41,0.00052054,120]
[358226793,1744858252830,-500.0,0.00052054,120]
[358226794,1744858252839,-500.0,0.00052054,120]
[358226795,1744858252848,-500.0,0.00052054,120]
[358226796,1744858252857,-500.0,0.00052054,120]
[358226797,1744858252867,-559.1,0.00052054,120]
[358226798,1744858252876,-500.0,0.00052054,120]
[358226799,1744858252885,-500.0,0.00052054,120]
[358226800,1744858252894,-500.0,0.00052054,120]
[358226802,1744858252904,-500.0,0.00052054,120]
[358226804,1744858252913,-500.0,0.00052054,120]
[358226806,1744858252922,-500.0,0.00052054,120]
[358226808,1744858252932,-500.0,0.00052054,120]
[358226810,1744858252941,-500.0,0.00052054,120]
[358226812,1744858252950,-1445.66,0.00052054,120]
[358226813,1744858252959,-522.12848477,0.00052054,120]
[358226815,1744858252967,-500.0,0.00052054,120]
[358226817,1744858252976,-1406.86,0.00052054,120]
[358226819,1744858252985,-500.0,0.00052054,120]
[358226821,1744858252995,-500.0,0.00052054,120]
[358226823,1744858253004,-500.0,0.00052054,120]
[358226825,1744858253013,-1089.46,0.00052054,120]
[358226827,1744858253022,-2414.01,0.00052054,120]
[358226829,1744858253030,-500.0,0.00052054,2]
[358226831,1744858253039,-500.0,0.00052054,120]
[358226833,1744858253048,-500.0,0.00052054,120]
[358226835,1744858253058,-500.0,0.00052054,2]
[358226837,1744858253068,-500.0,0.00052054,2]
[358226839,1744858253077,-500.0,0.00052054,2]
[358226841,1744858253086,-500.0,0.00052054,2]
[358226843,1744858253097,-500.0,0.00052054,2]
[358226845,1744858253106,-500.0,0.00052054,2]
[358226847,1744858253116,-500.0,0.00052054,2]
[358226849,1744858253126,-500.0,0.00052054,120]
[358226851,1744858253136,-500.0,0.00052054,120]
[358226853,1744858253146,-511.46656764,0.00052054,120]
[358226855,1744858253156,-500.0,0.00052054,120]
[358226857,1744858253167,-500.0,0.00052054,120]
[358226859,1744858253178,-610.72,0.00052054,120]
[358226861,1744858253188,-552.99499496,0.00052054,120]
[358226864,1744858253208,-525.47567986,0.00052054,120]
[358226866,1744858253219,-500.0,0.00052054,120]
[358226868,1744858253229,-560.34145171,0.00052054,120]
[358226870,1744858253240,-500.0,0.00052054,120]
[358226872,1744858253250,-208.97135444,0.00052054,120]
[358226874,1744858253260,-506.90356105,0.00052054,120]
[358226876,1744858253270,-4094.93,0.00052054,120]
[358226878,1744858253280,-1596.73,0.00052054,120]
[358226880,1744858253290,-500.0,0.00052054,120]
[358226882,1744858253300,-500.0,0.00052054,120]
[358226884,1744858253310,-500.0,0.00052054,120]
[358226886,1744858253320,-617.23843566,0.00052054,120]
[358226888,1744858253330,-500.0,0.00052054,120]
[358226890,1744858253340,-500.0,0.00052054,120]
[358226892,1744858253350,-500.0,0.00052054,120]
[358226894,1744858253360,-500.0,0.00052054,120]
[358226896,1744858253369,-500.0,0.00052054,120]
[358226898,1744858253379,-500.0,0.00052054,120]
[358226900,1744858253389,-607.37314311,0.00052054,120]
[358226902,1744858253399,-500.0,0.00052054,120]
[358226904,1744858253409,-500.0,0.00052054,120]
[358226906,1744858253419,-500.0,0.00052054,120]
[358226908,1744858253431,-582.87,0.00052054,120]
[358226910,1744858253442,-1132.52,0.00052054,120]
[358226912,1744858253451,-500.0,0.00052054,120]
[358226914,1744858253461,-500.0,0.00052054,120]
[358226916,1744858253472,-500.0,0.00052054,120]
[358226918,1744858253482,-500.0,0.00052054,120]
[358226920,1744858253492,-500.0,0.00052054,120]
[358226922,1744858253502,-1052.23,0.00052054,120]
[358226924,1744858253512,-500.0,0.00052054,120]
[358226926,1744858253521,-1093.58,0.00052054,120]
[358226928,1744858253531,-500.0,0.00052054,120]
[358226930,1744858253541,-500.0,0.00052054,120]
[358226932,1744858253551,-1545.17,0.00052054,120]
[358226934,1744858253560,-1053.96,0.00052054,120]
[358226936,1744858253570,-500.0,0.00052054,120]
[358226938,1744858253579,-500.0,0.00052054,120]
[358226940,1744858253589,-500.0,0.00052054,120]
[358226942,1744858253599,-2317.13,0.00052054,120]
[358226944,1744858253608,-500.0,0.00052054,120]
[358226946,1744858253618,-500.0,0.00052054,120]
[358226948,1744858253628,-500.0,0.00052054,120]
[358226950,1744858253637,-500.0,0.00052054,7]
[358226952,1744858253647,-513.11838286,0.00052054,120]
[358226954,1744858253656,-538.11082712,0.00052054,120]
[358226956,1744858253666,-500.0,0.00052054,120]
[358226958,1744858253675,-209.71952613,0.00052054,60]
[358226960,1744858253685,-550.06,0.00052054,15]
[358226962,1744858253692,-550.06,0.00052054,15]
[358226964,1744858253701,-550.06,0.00052054,15]
[358226966,1744858253710,-550.06,0.00052054,15]
[358226968,1744858253720,-550.06,0.00052054,15]
[358226970,1744858253730,-550.06,0.00052054,15]
[358226972,1744858253739,-550.06,0.00052054,15]
[358226974,1744858253749,-630.82,0.00052054,120]
[358226976,1744858253757,-1244.03,0.00052054,120]
[358226978,1744858253767,-780.6,0.00052054,120]
[358226980,1744858253777,-500.0,0.00052054,120]
[358226982,1744858253786,-500.0,0.00052054,120]
[358226984,1744858253797,-500.0,0.00052054,120]
[358226986,1744858253808,-500.0,0.00052054,120]
[358226988,1744858253817,-500.0,0.00052054,120]
[358226990,1744858253827,-500.0,0.00052054,120]
[358226992,1744858253836,-500.0,0.00052054,120]
[358226994,1744858253846,-500.0,0.00052054,120]
[358226996,1744858253855,-1200.78,0.00052054,120]
[358226998,1744858253865,-500.0,0.00052054,120]
[358227000,1744858253876,-500.0,0.00052054,120]
[358227002,1744858253886,-500.0,0.00052054,120]
[358227004,1744858253896,-2648.1,0.00052054,120]
[358227006,1744858253906,-500.0,0.00052054,120]
[358227007,1744858253916,-500.0,0.00052054,120]
[358227009,1744858253925,-976.31,0.00052054,120]
[358227012,1744858253935,-500.0,0.00052054,120]
[358227013,1744858253945,-500.0,0.00052054,120]
[358227015,1744858253954,-500.0,0.00052054,120]
[358227017,1744858253965,-500.0,0.00052054,120]
[358227020,1744858253975,-500.0,0.00052054,120]
[358227022,1744858253985,-627.75,0.00052054,120]
[358227023,1744858253995,-500.0,0.00052054,120]
[358227026,1744858254006,-500.0,0.00052054,120]
[358227027,1744858254016,-500.0,0.00052054,120]
[358227029,1744858254027,-500.0,0.00052054,120]
[358227031,1744858254036,-504.21575353,0.00052054,120]
[358227033,1744858254046,-342.88949314,0.00052054,120]
[358227035,1744858254056,-500.0,0.00052054,120]
[358227037,1744858254066,-500.0,0.00052054,120]
[358227039,1744858254076,-527.94941685,0.00052054,120]
[358227041,1744858254086,-513.08006563,0.00052054,120]
[358227043,1744858254095,-1484.61,0.00052054,120]
[358227045,1744858254104,-500.0,0.00052054,120]
[358227047,1744858254114,-195.920568,0.00052054,120]
[358227049,1744858254124,-500.0,0.00052054,120]
[358227051,1744858254134,-500.0,0.00052054,120]
[358227054,1744858254144,-567.24640641,0.00052054,120]
[358227056,1744858254153,-500.0,0.00052054,120]
[358227057,1744858254162,-500.0,0.00052054,120]
[358227059,1744858254171,-664.07,0.00052054,120]
[358227061,1744858254181,-636.45175024,0.00052054,120]
[358227063,1744858254190,-500.0,0.00052054,120]
[358227065,1744858254200,-500.0,0.00052054,120]
[358227067,1744858254210,-500.0,0.00052054,120]
[358227069,1744858254220,-152.966505,0.00052054,120]
[358227071,1744858254229,-500.0,0.00052054,120]
[358227073,1744858254239,-500.0,0.00052054,120]
[358227075,1744858254249,-537.51821332,0.00052054,120]
[358227077,1744858254258,-515.04949904,0.00052054,120]
[358227079,1744858254270,-500.0,0.00052054,120]
[358227081,1744858254280,-520.83,0.00052054,120]
[358227099,1744858254290,-500.0,0.00052054,120]
[358227101,1744858254462,-500.0,0.00052054,120]
[358227103,1744858254473,-500.0,0.00052054,120]
[358227105,1744858254483,-504.75648956,0.00052054,120]
[358227107,1744858254492,-500.0,0.00052054,120]
[358227109,1744858254502,-500.0,0.00052054,120]
[358227111,1744858254512,-803.18,0.00052054,120]
[358227113,1744858254522,-500.0,0.00052054,120]
[358227115,1744858254531,-517.89232784,0.00052055,120]
[358227117,1744858254540,-500.0,0.00052073,10]